{"text_format":"1","workbook":"xlsx","n_sheets":4,"sheets":["Données de pose","Données action sensibilisation","Total","Liste des  champs"],"not_rendered":{"charts":0,"images":0,"macros":1,"external_links":0,"defined_names":0,"comments":0,"pivot_tables":2},"unopened":[],"bounds":{"document_bytes":16777216,"sheet_cells":100000,"rows_first":2000,"rows_last":500,"rows_between":2000,"halvings":0,"cell_chars":16384,"cell_head_chars":4096},"cells_cut":0,"cells_raw":0,"read":"whole","date_system":"1900"}

{"sheet":"Données de pose","index":0,"n_rows":218,"n_cols":8,"rows_kept":218,"cut":false,"hidden":false,"merged":[[7,1,8,7]]}
[null,"Données de pose des nichoirs artificiels à Hirondelles et Martinets"]
[]
[null,"Personne responsable de la saisie des données"]
[null,"Commune:"]
[null,"Nom Prénom:"]
[null,"e-mail: "]
[null,"Téléphone:"]
[null,"Remplir les champs suivants comme suit : Une ligne doit être utilisée par n° de bâtiment et par espèce. Le registre des bâtiments fait référence comme unité de localisation. "]
[]
[null,"Exemple:"]
[null,"1005 Lausanne",null,"2'538'367.0, 1'152'683.8","Martinet Noir",2,0,"2021-11-22"]
[null,"Nyon",280102627,null,"Hirondelle de fenêtre",5,2,"2021-11-22"]
[]
[null,"Localité","n° du bâtiment EGID (voir www.geo.vd.ch/theme/localisation_thm ","Si absence d'EGID, coordonnées du bâtiment (LV95)","Espèce","Nombre de nichoirs ou nids artificiels posés","Mètres de planchettes anti-salissures posées (facultatif)","Date de pose \n(JJ.MM.AAAA)"]
[null,null,null,null,null,0]
[]
[]
[]
[]
[]
[]
[]
[]
[]
[]
[]
[]
[]
[]
[]
[]
[]
[]
[]
[]
[]
[]
[]
[]
[]
[]
[]
[]
[]
[]
[]
[]
[]
[]
[]
[]
[]
[]
[]
[]
[]
[]
[]
[]
[]
[]
[]
[]
[]
[]
[]
[]
[]
[]
[]
[]
[]
[null,null,null,null,null,{"$f":"F73:F267","v":0}]
[null,null,null,null,null,{"$f":"F74:F268","v":0}]
[null,null,null,null,null,{"$f":"F75:F269","v":0}]
[null,null,null,null,null,{"$f":"F76:F270","v":0}]
[null,null,null,null,null,{"$f":"F77:F271","v":0}]
[null,null,null,null,null,{"$f":"F78:F272","v":0}]
[null,null,null,null,null,{"$f":"F79:F273","v":0}]
[null,null,null,null,null,{"$f":"F80:F274","v":0}]
[null,null,null,null,null,{"$f":"F81:F275","v":0}]
[null,null,null,null,null,{"$f":"F82:F276","v":0}]
[null,null,null,null,null,{"$f":"F83:F277","v":0}]
[null,null,null,null,null,{"$f":"F84:F278","v":0}]
[null,null,null,null,null,{"$f":"F85:F279","v":0}]
[null,null,null,null,null,{"$f":"F86:F280","v":0}]
[null,null,null,null,null,{"$f":"F87:F281","v":0}]
[null,null,null,null,null,{"$f":"F88:F282","v":0}]
[null,null,null,null,null,{"$f":"F89:F283","v":0}]
[null,null,null,null,null,{"$f":"F90:F284","v":0}]
[null,null,null,null,null,{"$f":"F91:F285","v":0}]
[null,null,null,null,null,{"$f":"F92:F286","v":0}]
[null,null,null,null,null,{"$f":"F93:F287","v":0}]
[null,null,null,null,null,{"$f":"F94:F288","v":0}]
[null,null,null,null,null,{"$f":"F95:F289","v":0}]
[null,null,null,null,null,{"$f":"F96:F290","v":0}]
[null,null,null,null,null,{"$f":"F97:F291","v":0}]
[null,null,null,null,null,{"$f":"F98:F292","v":0}]
[null,null,null,null,null,{"$f":"F99:F293","v":0}]
[null,null,null,null,null,{"$f":"F100:F294","v":0}]
[null,null,null,null,null,{"$f":"F101:F295","v":0}]
[null,null,null,null,null,{"$f":"F102:F296","v":0}]
[null,null,null,null,null,{"$f":"F103:F297","v":0}]
[null,null,null,null,null,{"$f":"F104:F298","v":0}]
[null,null,null,null,null,{"$f":"F105:F299","v":0}]
[null,null,null,null,null,{"$f":"F106:F300","v":0}]
[null,null,null,null,null,{"$f":"F107:F301","v":0}]
[null,null,null,null,null,{"$f":"F108:F302","v":0}]
[null,null,null,null,null,{"$f":"F109:F303","v":0}]
[null,null,null,null,null,{"$f":"F110:F304","v":0}]
[null,null,null,null,null,{"$f":"F111:F305","v":0}]
[null,null,null,null,null,{"$f":"F112:F306","v":0}]
[null,null,null,null,null,{"$f":"F113:F307","v":0}]
[null,null,null,null,null,{"$f":"F114:F308","v":0}]
[null,null,null,null,null,{"$f":"F115:F309","v":0}]
[null,null,null,null,null,{"$f":"F116:F310","v":0}]
[null,null,null,null,null,{"$f":"F117:F311","v":0}]
[null,null,null,null,null,{"$f":"F118:F312","v":0}]
[null,null,null,null,null,{"$f":"F119:F313","v":0}]
[null,null,null,null,null,{"$f":"F120:F314","v":0}]
[null,null,null,null,null,{"$f":"F121:F315","v":0}]
[null,null,null,null,null,{"$f":"F122:F316","v":0}]
[null,null,null,null,null,{"$f":"F123:F317","v":0}]
[null,null,null,null,null,{"$f":"F124:F318","v":0}]
[null,null,null,null,null,{"$f":"F125:F319","v":0}]
[null,null,null,null,null,{"$f":"F126:F320","v":0}]
[null,null,null,null,null,{"$f":"F127:F321","v":0}]
[null,null,null,null,null,{"$f":"F128:F322","v":0}]
[null,null,null,null,null,{"$f":"F129:F323","v":0}]
[null,null,null,null,null,{"$f":"F130:F324","v":0}]
[null,null,null,null,null,{"$f":"F131:F325","v":0}]
[null,null,null,null,null,{"$f":"F132:F326","v":0}]
[null,null,null,null,null,{"$f":"F133:F327","v":0}]
[null,null,null,null,null,{"$f":"F134:F328","v":0}]
[null,null,null,null,null,{"$f":"F135:F329","v":0}]
[null,null,null,null,null,{"$f":"F136:F330","v":0}]
[null,null,null,null,null,{"$f":"F137:F331","v":0}]
[null,null,null,null,null,{"$f":"F138:F332","v":0}]
[null,null,null,null,null,{"$f":"F139:F333","v":0}]
[null,null,null,null,null,{"$f":"F140:F334","v":0}]
[null,null,null,null,null,{"$f":"F141:F335","v":0}]
[null,null,null,null,null,{"$f":"F142:F336","v":0}]
[null,null,null,null,null,{"$f":"F143:F337","v":0}]
[null,null,null,null,null,{"$f":"F144:F338","v":0}]
[null,null,null,null,null,{"$f":"F145:F339","v":0}]
[null,null,null,null,null,{"$f":"F146:F340","v":0}]
[null,null,null,null,null,{"$f":"F147:F341","v":0}]
[null,null,null,null,null,{"$f":"F148:F342","v":0}]
[null,null,null,null,null,{"$f":"F149:F343","v":0}]
[null,null,null,null,null,{"$f":"F150:F344","v":0}]
[null,null,null,null,null,{"$f":"F151:F345","v":0}]
[null,null,null,null,null,{"$f":"F152:F346","v":0}]
[null,null,null,null,null,{"$f":"F153:F347","v":0}]
[null,null,null,null,null,{"$f":"F154:F348","v":0}]
[null,null,null,null,null,{"$f":"F155:F349","v":0}]
[null,null,null,null,null,{"$f":"F156:F350","v":0}]
[null,null,null,null,null,{"$f":"F157:F351","v":0}]
[null,null,null,null,null,{"$f":"F158:F352","v":0}]
[null,null,null,null,null,{"$f":"F159:F353","v":0}]
[null,null,null,null,null,{"$f":"F160:F354","v":0}]
[null,null,null,null,null,{"$f":"F161:F355","v":0}]
[null,null,null,null,null,{"$f":"F162:F356","v":0}]
[null,null,null,null,null,{"$f":"F163:F357","v":0}]
[null,null,null,null,null,{"$f":"F164:F358","v":0}]
[null,null,null,null,null,{"$f":"F165:F359","v":0}]
[null,null,null,null,null,{"$f":"F166:F360","v":0}]
[null,null,null,null,null,{"$f":"F167:F361","v":0}]
[null,null,null,null,null,{"$f":"F168:F362","v":0}]
[null,null,null,null,null,{"$f":"F169:F363","v":0}]
[null,null,null,null,null,{"$f":"F170:F364","v":0}]
[null,null,null,null,null,{"$f":"F171:F365","v":0}]
[null,null,null,null,null,{"$f":"F172:F366","v":0}]
[null,null,null,null,null,{"$f":"F173:F367","v":0}]
[null,null,null,null,null,{"$f":"F174:F368","v":0}]
[null,null,null,null,null,{"$f":"F175:F369","v":0}]
[null,null,null,null,null,{"$f":"F176:F370","v":0}]
[null,null,null,null,null,{"$f":"F177:F371","v":0}]
[null,null,null,null,null,{"$f":"F178:F372","v":0}]
[null,null,null,null,null,{"$f":"F179:F373","v":0}]
[null,null,null,null,null,{"$f":"F180:F374","v":0}]
[null,null,null,null,null,{"$f":"F181:F375","v":0}]
[null,null,null,null,null,{"$f":"F182:F376","v":0}]
[null,null,null,null,null,{"$f":"F183:F377","v":0}]
[null,null,null,null,null,{"$f":"F184:F378","v":0}]
[null,null,null,null,null,{"$f":"F185:F379","v":0}]
[null,null,null,null,null,{"$f":"F186:F380","v":0}]
[null,null,null,null,null,{"$f":"F187:F381","v":0}]
[null,null,null,null,null,{"$f":"F188:F382","v":0}]
[null,null,null,null,null,{"$f":"F189:F383","v":0}]
[null,null,null,null,null,{"$f":"F190:F384","v":0}]
[null,null,null,null,null,{"$f":"F191:F385","v":0}]
[null,null,null,null,null,{"$f":"F192:F386","v":0}]
[null,null,null,null,null,{"$f":"F193:F387","v":0}]
[null,null,null,null,null,{"$f":"F194:F388","v":0}]
[null,null,null,null,null,{"$f":"F195:F389","v":0}]
[null,null,null,null,null,{"$f":"F196:F390","v":0}]
[null,null,null,null,null,{"$f":"F197:F391","v":0}]
[null,null,null,null,null,{"$f":"F198:F392","v":0}]
[null,null,null,null,null,{"$f":"F199:F393","v":0}]
[null,null,null,null,null,{"$f":"F200:F394","v":0}]
[null,null,null,null,null,{"$f":"F201:F395","v":0}]
[null,null,null,null,null,{"$f":"F202:F396","v":0}]
[null,null,null,null,null,{"$f":"F203:F397","v":0}]
[null,null,null,null,null,{"$f":"F204:F398","v":0}]
[null,null,null,null,null,{"$f":"F205:F399","v":0}]
[null,null,null,null,null,{"$f":"F206:F400","v":0}]
[null,null,null,null,null,{"$f":"F207:F401","v":0}]
[null,null,null,null,null,{"$f":"F208:F402","v":0}]
[null,null,null,null,null,{"$f":"F209:F403","v":0}]
[null,null,null,null,null,{"$f":"F210:F404","v":0}]
[null,null,null,null,null,{"$f":"F211:F405","v":0}]
[null,null,null,null,null,{"$f":"F212:F406","v":0}]
[null,null,null,null,null,{"$f":"F213:F407","v":0}]
[null,null,null,null,null,{"$f":"F214:F408","v":0}]
[null,null,null,null,null,{"$f":"F215:F409","v":0}]
[null,null,null,null,null,{"$f":"F216:F410","v":0}]
[null,null,null,null,null,{"$f":"F217:F411","v":0}]
[null,null,null,null,null,{"$f":"F218:F412","v":0}]

{"sheet":"Données action sensibilisation","index":1,"n_rows":10,"n_cols":7,"rows_kept":10,"cut":false,"hidden":false,"merged":[]}
[null,"Actions de sensibilisation menées"]
[]
[null,"Exemple: "]
[null,null,"intervention dans une classe","élèves",22,1]
[null,null,"intervention journée de sensibilisation","population",22,1]
[]
[null,"Action","Titre de l'action (ex. intervention dans une classe, événement sensibilisation population","Type de public (ex. élèves, population, etc)","Nombre de participants","durée de l'action (en demi-journée)","Date  de l'action"]
[null,"Action 1"]
[null,"Action 2"]
[null,"Action 3"]

{"sheet":"Total","index":2,"n_rows":7,"n_cols":6,"rows_kept":7,"cut":false,"hidden":false,"merged":[]}
["Total des nichoirs et planchettes posées",null,null,null,"Total des actions de sensibilisation menées"]
[]
["Espèces","Somme de Nombre de nichoirs ou nids artificiels posés",null,null,"Actions","Somme de Nombre de participants"]
["(vide)",0,null,null,"Action 1"]
["Total général",0,null,null,"Action 2"]
[null,null,null,null,"Action 3"]
[null,null,null,null,"Total général"]

{"sheet":"Liste des  champs","index":3,"n_rows":457,"n_cols":2,"rows_kept":457,"cut":false,"hidden":false,"merged":[]}
["Liste déroulante"]
[]
["Espèces","NPA Localité"]
["Hirondelle de fenêtre","Aclens"]
["Hirondelle rustique","Agiez"]
["Martinets noir","Aigle"]
[null,"Allaman"]
[null,"Allens"]
[null,"Apples"]
[null,"Aran"]
[null,"Arnex-sur-Nyon"]
[null,"Arnex-sur-Orbe"]
[null,"Arveyes"]
[null,"Arzier-Le Muids"]
[null,"Assens"]
[null,"Aubonne"]
[null,"Avenches"]
[null,"Ballaigues"]
[null,"Ballens"]
[null,"Bassins"]
[null,"Baulmes"]
[null,"Bavois"]
[null,"Begnins"]
[null,"Bellerive VD"]
[null,"Belmont-sur-Lausanne"]
[null,"Belmont-sur-Yverdon"]
[null,"Bercher"]
[null,"Berolle"]
[null,"Bettens"]
[null,"Bex"]
[null,"Bière"]
[null,"Bioley-Magnoux"]
[null,"Bioley-Orjulaz"]
[null,"Blonay"]
[null,"Bofflens"]
[null,"Bogis-Bossey"]
[null,"Bonvillars"]
[null,"Borex"]
[null,"Bottens"]
[null,"Bougy-Villars"]
[null,"Boulens"]
[null,"Bournens"]
[null,"Boussens"]
[null,"Bremblens"]
[null,"Brenles"]
[null,"Brent"]
[null,"Bretigny-sur-Morrens"]
[null,"Bretonnières"]
[null,"Buchillon"]
[null,"Bullet"]
[null,"Bursinel"]
[null,"Bursins"]
[null,"Burtigny"]
[null,"Bussigny"]
[null,"Bussigny-sur-Oron"]
[null,"Bussy-Chardonney"]
[null,"Bussy-sur-Moudon"]
[null,"Carrouge VD"]
[null,"Caux"]
[null,"Cerniaz VD"]
[null,"Chabrey"]
[null,"Chailly-Montreux"]
[null,"Chamblon"]
[null,"Chamby"]
[null,"Champagne"]
[null,"Champtauroz"]
[null,"Champvent"]
[null,"Chanéaz"]
[null,"Chapelle-sur-Moudon"]
[null,"Chardonne"]
[null,"Château-d'Oex"]
[null,"Châtillens"]
[null,"Chavannes-de-Bogis"]
[null,"Chavannes-des-Bois"]
[null,"Chavannes-le-Chêne"]
[null,"Chavannes-le-Veyron"]
[null,"Chavannes-près-Renens"]
[null,"Chavannes-sur-Moudon"]
[null,"Chavornay"]
[null,"Chenaux"]
[null,"Chêne-Pâquier"]
[null,"Chernex"]
[null,"Chesalles-sur-Moudon"]
[null,"Chesalles-sur-Oron"]
[null,"Cheseaux-Noréaz"]
[null,"Cheseaux-sur-Lausanne"]
[null,"Chéserex"]
[null,"Chesières"]
[null,"Chessel"]
[null,"Chevilly"]
[null,"Chevroux"]
[null,"Chexbres"]
[null,"Chigny"]
[null,"Clarens"]
[null,"Clarmont"]
[null,"Coinsins"]
[null,"Colombier VD"]
[null,"Combremont-le-Grand"]
[null,"Combremont-le-Petit"]
[null,"Commugny"]
[null,"Concise"]
[null,"Constantine"]
[null,"Coppet"]
[null,"Corbeyrier"]
[null,"Corcelles-le-Jorat"]
[null,"Corcelles-près-Concise"]
[null,"Corcelles-près-Payerne"]
[null,"Corcelles-sur-Chavornay"]
[null,"Correvon"]
[null,"Corseaux"]
[null,"Corsier-sur-Vevey"]
[null,"Cossonay-Ville"]
[null,"Cottens VD"]
[null,"Cotterd"]
[null,"Crans VD"]
[null,"Crassier"]
[null,"Cremin"]
[null,"Crissier"]
[null,"Cronay"]
[null,"Croy"]
[null,"Cuarnens"]
[null,"Cuarny"]
[null,"Cudrefin"]
[null,"Cugy VD"]
[null,"Cully"]
[null,"Curtilles"]
[null,"Daillens"]
[null,"Démoret"]
[null,"Denens"]
[null,"Denezy"]
[null,"Denges"]
[null,"Dizy"]
[null,"Dommartin"]
[null,"Dompierre VD"]
[null,"Donatyre"]
[null,"Donneloye"]
[null,"Duillier"]
[null,"Dully"]
[null,"Echallens"]
[null,"Echandens"]
[null,"Echichens"]
[null,"Eclagnens"]
[null,"Eclépens"]
[null,"Ecoteaux"]
[null,"Ecublens VD"]
[null,"Epalinges"]
[null,"Epautheyres"]
[null,"Ependes VD"]
[null,"Epesses"]
[null,"Essertes"]
[null,"Essertines-sur-Rolle"]
[null,"Essertines-sur-Yverdon"]
[null,"Essert-Pittet"]
[null,"Essert-sous-Champvent"]
[null,"Etagnières"]
[null,"Etoy"]
[null,"Eysins"]
[null,"Faoug"]
[null,"Féchy"]
[null,"Fenalet-sur-Bex"]
[null,"Fenil-sur-Corsier"]
[null,"Ferlens VD"]
[null,"Ferreyres"]
[null,"Fey"]
[null,"Fiez"]
[null,"Flendruz"]
[null,"Fontaines-sur-Grandson"]
[null,"Fontanezier"]
[null,"Forel (Lavaux)"]
[null,"Forel-sur-Lucens"]
[null,"Founex"]
[null,"Frenières-sur-Bex"]
[null,"Froideville"]
[null,"Genolier"]
[null,"Giez"]
[null,"Gilly"]
[null,"Gimel"]
[null,"Gingins"]
[null,"Givrins"]
[null,"Gland"]
[null,"Glion"]
[null,"Gollion"]
[null,"Gossens"]
[null,"Goumoens-la-Ville"]
[null,"Goumoens-le-Jux"]
[null,"Grancy"]
[null,"Grandcour"]
[null,"Grandevent"]
[null,"Grandson"]
[null,"Grandvaux"]
[null,"Granges-près-Marnand"]
[null,"Grens"]
[null,"Gressy"]
[null,"Gryon"]
[null,"Henniez"]
[null,"Hermenches"]
[null,"Huémoz"]
[null,"Jongny"]
[null,"Jouxtens-Mézery"]
[null,"Juriens"]
[null,"La Chaux (Cossonay)"]
[null,"La Comballaz"]
[null,"La Conversion"]
[null,"La Coudre"]
[null,"La Croix (Lutry)"]
[null,"La Cure"]
[null,"La Forclaz VD"]
[null,"La Lécherette"]
[null,"La Praz"]
[null,"La Rippe"]
[null,"La Russille"]
[null,"La Sagne (Ste-Croix)"]
[null,"La Sarraz"]
[null,"La Tine"]
[null,"La Tour-de-Peilz"]
[null,"La Vraconnaz"]
[null,"L'Abbaye"]
[null,"L'Abergement"]
[null,"L'Auberson"]
[null,"1000 Lausanne 25"]
[null,"1000 Lausanne 26"]
[null,"1000 Lausanne 27"]
[null,"1003 Lausanne"]
[null,"1004 Lausanne"]
[null,"1005 Lausanne"]
[null,"1006 Lausanne"]
[null,"1007 Lausanne"]
[null,"1010 Lausanne"]
[null,"1011 Lausanne"]
[null,"1012 Lausanne"]
[null,"1015 Lausanne"]
[null,"1018 Lausanne"]
[null,"Lavey-les-Bains"]
[null,"Lavey-Village"]
[null,"Lavigny"]
[null,"Le Brassus"]
[null,"Le Château-de-Ste-Croix"]
[null,"Le Lieu"]
[null,"Le Mont-Pèlerin"]
[null,"Le Mont-sur-Lausanne"]
[null,"Le Pont"]
[null,"Le Séchey"]
[null,"Le Sentier"]
[null,"Le Sépey"]
[null,"Le Solliat"]
[null,"Le Vaud"]
[null,"Les Avants"]
[null,"Les Bioux"]
[null,"Les Charbonnières"]
[null,"Les Clées"]
[null,"Les Cullayes"]
[null,"Les Diablerets"]
[null,"Les Monts-de-Corsier"]
[null,"Les Monts-de-Pully"]
[null,"Les Mosses"]
[null,"Les Moulins"]
[null,"Les Plans-sur-Bex"]
[null,"Les Posses-sur-Bex"]
[null,"Les Rasses"]
[null,"Les Tavernes"]
[null,"Les Thioleyres"]
[null,"L'Etivaz"]
[null,"Leysin"]
[null,"Lignerolle"]
[null,"L'Isle"]
[null,"Lonay"]
[null,"Longirod"]
[null,"L'Orient"]
[null,"Lovatens"]
[null,"Lucens"]
[null,"Luins"]
[null,"Lully VD"]
[null,"Lussery-Villars"]
[null,"Lussy-sur-Morges"]
[null,"Lutry"]
[null,"Maracon"]
[null,"Marchissy"]
[null,"Marnand"]
[null,"Martherenges"]
[null,"Mathod"]
[null,"Mauborget"]
[null,"Mauraz"]
[null,"Mex VD"]
[null,"Mézery-près-Donneloye"]
[null,"Mézières VD"]
[null,"Mies"]
[null,"Missy"]
[null,"Moiry VD"]
[null,"Mollens VD"]
[null,"Mollie-Margot"]
[null,"Molondin"]
[null,"Monnaz"]
[null,"Montagny-près-Yverdon"]
[null,"Montaubion-Chardonney"]
[null,"Montcherand"]
[null,"Montherod"]
[null,"Mont-la-Ville"]
[null,"Montmagny"]
[null,"Montpreveyres"]
[null,"Montreux"]
[null,"Montricher"]
[null,"Mont-sur-Rolle"]
[null,"Morcles"]
[null,"Morges"]
[null,"Morrens VD"]
[null,"Moudon"]
[null,"Mur (Vully) VD"]
[null,"Mutrux"]
[null,"Naz"]
[null,"Neyruz-sur-Moudon"]
[null,"Novalles"]
[null,"Noville"]
[null,"Nyon"]
[null,"Ogens"]
[null,"Oleyres"]
[null,"Ollon VD"]
[null,"Onnens VD"]
[null,"Oppens"]
[null,"Orbe"]
[null,"Orges"]
[null,"Orny"]
[null,"Oron-la-Ville"]
[null,"Oron-le-Châtel"]
[null,"Orzens"]
[null,"Oulens-sous-Echallens"]
[null,"Oulens-sur-Lucens"]
[null,"Pailly"]
[null,"Palézieux"]
[null,"Palézieux-Village"]
[null,"Pampigny"]
[null,"Panex"]
[null,"Paudex"]
[null,"Payerne"]
[null,"Peney-le-Jorat"]
[null,"Penthalaz"]
[null,"Penthaz"]
[null,"Penthéréaz"]
[null,"Perroy"]
[null,"Peyres-Possens"]
[null,"Pizy"]
[null,"Poliez-le-Grand"]
[null,"Poliez-Pittet"]
[null,"Pompaples"]
[null,"Pomy"]
[null,"Prahins"]
[null,"Prangins"]
[null,"Premier"]
[null,"Préverenges"]
[null,"Prévonloup"]
[null,"Prilly"]
[null,"Provence"]
[null,"Puidoux"]
[null,"Pully"]
[null,"Rances"]
[null,"Renens VD"]
[null,"Rennaz"]
[null,"Reverolle"]
[null,"Riex"]
[null,"Rivaz"]
[null,"Roche VD"]
[null,"Rolle"]
[null,"Romainmôtier"]
[null,"Romairon"]
[null,"Romanel-sur-Lausanne"]
[null,"Romanel-sur-Morges"]
[null,"Ropraz"]
[null,"Rossenges"]
[null,"Rossens VD"]
[null,"Rossinière"]
[null,"Rougemont"]
[null,"Rovray"]
[null,"Rueyres"]
[null,"Salavaux"]
[null,"Sarzens"]
[null,"Sassel"]
[null,"Saubraz"]
[null,"Savigny"]
[null,"Sédeilles"]
[null,"Seigneux"]
[null,"Senarclens"]
[null,"Sergey"]
[null,"Servion"]
[null,"Sévery"]
[null,"Signy"]
[null,"Sottens"]
[null,"St-Barthélemy VD"]
[null,"St-Cergue"]
[null,"St-Cierges"]
[null,"Ste-Croix"]
[null,"St-George"]
[null,"St-Légier-La Chiésaz"]
[null,"St-Livres"]
[null,"St-Oyens"]
[null,"St-Prex"]
[null,"St-Saphorin (Lavaux)"]
[null,"St-Saphorin-sur-Morges"]
[null,"St-Sulpice VD"]
[null,"St-Triphon"]
[null,"Suchy"]
[null,"Sugnens"]
[null,"Sullens"]
[null,"Suscévaz"]
[null,"Syens"]
[null,"Tannay"]
[null,"Tartegnin"]
[null,"Territet"]
[null,"Thierrens"]
[null,"Tolochenaz"]
[null,"Trélex"]
[null,"Trey"]
[null,"Treycovagnes"]
[null,"Treytorrens (Payerne)"]
[null,"Ursins"]
[null,"Valeyres-sous-Montagny"]
[null,"Valeyres-sous-Rances"]
[null,"Valeyres-sous-Ursins"]
[null,"Vallamand"]
[null,"Vallorbe"]
[null,"Vaugondry"]
[null,"Vaulion"]
[null,"Vaux-sur-Morges"]
[null,"Vers-chez-Perrin"]
[null,"Vers-l'Eglise"]
[null,"Vevey"]
[null,"Veytaux"]
[null,"Vich"]
[null,"Villard-sur-Chamby"]
[null,"Villars-Bozon"]
[null,"Villars-Bramard"]
[null,"Villars-Burquin"]
[null,"Villars-Epeney"]
[null,"Villars-le-Comte"]
[null,"Villars-le-Grand"]
[null,"Villars-le-Terroir"]
[null,"Villars-Mendraz"]
[null,"Villars-sous-Champvent"]
[null,"Villars-sous-Yens"]
[null,"Villars-Ste-Croix"]
[null,"Villars-sur-Ollon"]
[null,"Villars-Tiercelin"]
[null,"Villarzel"]
[null,"Villeneuve VD"]
[null,"Villette (Lavaux)"]
[null,"Vinzel"]
[null,"Vuarrens"]
[null,"Vucherens"]
[null,"Vufflens-la-Ville"]
[null,"Vufflens-le-Château"]
[null,"Vugelles-La Mothe"]
[null,"Vuibroye"]
[null,"Vuiteboeuf"]
[null,"Vulliens"]
[null,"Vullierens"]
[null,"Yens"]
[null,"Yverdon-les-Bains"]
[null,"Yvonand"]
[null,"Yvorne"]